[Event "Finnish Senior Championship 2022"]
[Site "Helsinki"]
[Date "2022.04.15"]
[Round "1.1"]
[White "Patola, Eero"]
[Black "Binham, Timothy F."]
[Result "0-1"]
[ECO "A36"]
[WhiteElo "1809"]
[BlackElo "2275"]
[Annotator "TA"]
[PlyCount "80"]
[EventDate "2022.04.15"]
[EventType "swiss"]
[EventCountry "FIN"]
[SourceTitle "playchess.com"]
[Source "ChessBase"]
[SourceQuality "1"]
[TimeControl "40/5400+30:1800+30"]

{[%evp 20,80,-3,-9,-8,-45,-45,-58,-39,-83,-46,-52,-49,-47,-57,-92,-83,-104,-94,-121,-110,-122,-122,-115,-107,-105,-95,-160,-162,-175,-147,-428,-418,-397,-404,-397,-392,-531,-427,-524,-524,-508,-500,-693,-511,-510,-510,-504,-511,-508,-466,-468,-467,-537,-529,-584,-423,-645,-647,-631,-612,-858,-838]} 1. e4 {[%emt 0:00:13]} c5 {[%emt 0:00:17]} 2. c4 {[%emt 0:00:11]} Nc6 {[%emt 0:00:32]} 3. Nc3 {[%emt 0:00:08]} g6 {[%emt 0:00:16]} 4. g3 {[%emt 0:00:17]} Bg7 {[%emt 0:00:04]} 5. Bg2 {[%emt 0:00:12]} d6 {[%emt 0:03:06]} 6. d3 {[%emt 0:00:37]} e6 {[%emt 0:03:22]} 7. Nge2 {[%emt 0:01:30]} Nge7 {[%emt 0:00:33]} 8. O-O {[%emt 0:00:34]} a6 {[%emt 0:01:26]} 9. Rb1 {[%emt 0:01:21]} O-O {[%emt 0:07:50]} 10. h3 {[%emt 0:03:58]} Rb8 {[%emt 0:01:39]} 11. a4 {[%emt 0:03:31]} Bd7 {[%emt 0:01:02] A36: Symmetrical English vs ...g6: 4 Bg2 Bg7.} 12. f4 {[%emt 0:06:28]} Nd4 {[%emt 0:02:55]} 13. Be3 {[%emt 0:03:07] [#]} Qa5 $146 {[%emt 0:05:37] Black is slightly better.} ({Predecessor:} 13... b5 14. axb5 axb5 15. Nxb5 Nxb5 16. cxb5 Rxb5 17. Nc3 Rb4 18. Qc2 Qb8 19. Rf2 Nc6 {1-0 (35) Grund,E (1675)-Flach,E (1954) Playchess.com INT 2021}) 14. Bf2 {[%emt 0:05:56]} Nxe2+ {[%emt 0:08:54]} 15. Qxe2 {[%emt 0:05:42]} Nc6 {[%emt 0:04:07]} ({Of course not} 15... Bxc3 16. bxc3 Rfc8 17. Qd2 $14) 16. Qd1 {[%emt 0:04:49]} Nd4 {[%emt 0:04:50]} 17. Kh2 {[%emt 0:03:25]} b5 {[%emt 0:04:06]} 18. axb5 {[%emt 0:02:21]} axb5 {[%emt 0:01:22]} 19. Be1 {[%emt 0:04:12]} bxc4 {[%emt 0:03:43]} 20. dxc4 {[%emt 0:01:18][%cal Oc3b5]} Qa6 {[%emt 0:01:36] Prevents Nb5. 0x0.00018dd8005ddp-1022s more active pieces. The white rooks are badly placed.} 21. b3 {[%emt 0:04:38]} Bc6 {[%emt 0:06:03]} 22. Rf2 {[%emt 0:04:23]} Rb6 {[%emt 0:01:35]} 23. Ra2 {[%emt 0:11:37]} (23. Rfb2 $142) 23... Qb7 $17 {[%emt 0:01:14]} 24. Ra3 {[%emt 0:06:23]} Rb8 {[%emt 0:03:13]} 25. Nb5 $2 {[%emt 0:04:28][%mdl 8192] [#]} (25. Qd3 $17) 25... Nxb5 $19 {[%emt 0:04:58]} 26. cxb5 {[%emt 0:00:25]} Bxe4 {[%emt 0:00:30]} 27. Bxe4 {[%emt 0:04:36]} Qxe4 {[%emt 0:01:34]} 28. Ra6 {[%emt 0:03:13]} d5 {[%emt 0:01:18] Black is clearly winning.} 29. Rxb6 {[%emt 0:04:31]} Rxb6 {[%emt 0:00:03]} 30. Bf2 {[%emt 0:02:38]} Rxb5 {[%emt 0:01:16] [#] ...c4 is the strong threat.} 31. Rc1 {[%emt 0:00:47]} Bd4 {[%emt 0:04:20]} 32. Bxd4 {[%emt 0:00:48]} Qxd4 {[%emt 0:00:10]} 33. Qxd4 {[%emt 0:01:53]} cxd4 {[%emt 0:00:02][%mdl 4096] Endgame KR-KR} 34. Rb1 {[%emt 0:01:36]} Rb4 {[%emt 0:02:09]} 35. Kg2 {[%emt 0:00:23]} Kf8 {[%emt 0:00:16]} 36. Kf2 {[%emt 0:00:30]} Ke7 {[%emt 0:00:18]} 37. Ke2 {[%emt 0:00:35]} Kd6 {[%emt 0:00:16] Strongly threatening ...f6.} 38. Kd3 {[%emt 0:00:44]} (38. g4 $142) 38... f6 {[%emt 0:00:29][%cal Bf7f6,Bf6e5][%mdl 32]} 39. Kc2 {[%emt 0:02:34]} e5 {[%emt 0:01:35]} 40. fxe5+ {[%emt 0:01:31]} fxe5 {[%emt 0:00:04] White got outplayed after the opening.  Weighted Error Value: White=0.55/Black=0.22 (precise)} 0-1

[Event "Finnish Senior Championship 2022"]
[Site "Helsinki"]
[Date "2022.04.15"]
[Round "1.2"]
[White "Kivipelto, Kaj"]
[Black "Koskinen, Hannu E."]
[Result "1/2-1/2"]
[ECO "A05"]
[WhiteElo "2129"]
[BlackElo "1746"]
[Annotator "TA"]
[PlyCount "48"]
[EventDate "2022.04.15"]
[EventType "swiss"]
[EventCountry "FIN"]
[SourceTitle "playchess.com"]
[Source "ChessBase"]
[SourceQuality "1"]
[TimeControl "40/5400+30:1800+30"]

{[%evp 12,48,21,14,29,30,36,18,19,5,29,21,27,-34,15,13,44,47,64,64,63,59,79,57,75,66,71,54,69,64,70,58,70,41,75,64,80,77,81]} 1. Nf3 {[%emt 0:00:18]} Nf6 {[%emt 0:00:01]} 2. g3 {[%emt 0:00:43]} g6 {[%emt 0:00:14]} 3. b4 {[%emt 0:00:47]} Bg7 {[%emt 0:00:17]} 4. Bb2 {[%emt 0:00:06]} O-O {[%emt 0:00:22]} 5. Bg2 {[%emt 0:00:07]} d6 {[%emt 0:03:37]} 6. O-O {[%emt 0:00:57]} Nbd7 {[%emt 0:00:42]} 7. c4 {[%emt 0:04:55]} c5 {[%emt 0:09:24] A05: Réti Opening: 1 Nf3 Nf6.} 8. bxc5 {[%emt 0:09:02]} Nxc5 {[%emt 0:01:04]} 9. d3 {[%emt 0:08:39]} Rb8 {[%emt 0:02:27] [#] The position is equal.} 10. Qc2 $146 {[%emt 0:20:07]} ({Predecessor:} 10. Nc3 b6 11. Qc2 Bb7 12. a4 a6 13. Ra3 d5 14. cxd5 Nxd5 15. Nxd5 Bxd5 16. Bxg7 Kxg7 {½-½ (41) Wickramasinghe,D (1673)-Kanakarathne,S (1409) Narahenpita 2017}) 10... Bd7 {[%emt 0:15:33]} 11. Nc3 {[%emt 0:00:46]} a6 {[%emt 0:15:10]} 12. Nd4 {[%emt 0:09:14]} (12. a4 $11) 12... e5 {[%emt 0:12:28]} (12... b5 $15 {was preferrable.}) 13. Nb3 $11 {[%emt 0:00:42]} Nxb3 {[%emt 0:07:29]} 14. axb3 {[%emt 0:01:28]} Qc7 {[%emt 0:05:09]} 15. Rfb1 {[%emt 0:12:52]} Bc6 {[%emt 0:02:52]} 16. e4 {[%emt 0:00:43]} Rfc8 {[%emt 0:03:46]} 17. Qd2 {[%emt 0:03:25]} Qd7 {[%emt 0:02:00]} 18. Nd1 {[%emt 0:07:02][%cal Bc3d1,Bd1e3,Be3c2,Bc2b4][%mdl 32]} Qe7 {[%emt 0:03:41]} 19. Ba3 {[%emt 0:05:19]} Bf8 {[%emt 0:01:51]} 20. Bc1 {[%emt 0:01:05]} Bg7 {[%emt 0:00:33]} 21. Ne3 {[%emt 0:01:33]} Qd8 {[%emt 0:01:59]} 22. Qe2 {[%emt 0:01:54]} Qe7 {[%emt 0:02:02]} 23. Nc2 {[%emt 0:00:45]} Re8 {[%emt 0:00:21]} 24. Nb4 {[%emt 0:02:17]} Bd7 {[%emt 0:00:16] Weighted Error Value: White=0.13 (very precise) /Black=0.16 (very precise)} 1/2-1/2

[Event "Finnish Senior Championship 2022"]
[Site "Helsinki"]
[Date "2022.04.15"]
[Round "1.5"]
[White "Hietala, Pekka"]
[Black "Raitanen, Markku"]
[Result "1-0"]
[ECO "B38"]
[WhiteElo "1925"]
[BlackElo "1813"]
[Annotator "NA RC"]
[PlyCount "64"]
[EventDate "2022.04.15"]
[EventType "swiss"]
[EventCountry "FIN"]
[SourceTitle "playchess.com"]
[Source "ChessBase"]
[SourceQuality "1"]
[TimeControl "40/5400+30:1800+30"]

1. c4 {[%emt 0:00:20]} c5 {[%emt 0:01:06]} 2. Nf3 {[%emt 0:00:21]} Nc6 {[%emt 0:00:23]} 3. d4 {[%emt 0:00:35]} cxd4 {[%emt 0:01:29]} 4. Nxd4 {[%emt 0:00:09]} Nf6 {[%emt 0:02:35]} 5. Nc3 {[%emt 0:00:27]} g6 {[%emt 0:03:10]} 6. e4 {[%emt 0:00:28]} d6 {[%emt 0:00:31]} 7. Be2 {[%emt 0:00:23]} Bg7 {[%emt 0:00:34]} 8. Be3 {[%emt 0:00:31]} O-O {[%emt 0:01:36]} 9. O-O {[%emt 0:00:17]} a6 {[%emt 0:01:01]} 10. Qd2 {[%emt 0:00:49]} Nxd4 {[%emt 0:01:27]} 11. Bxd4 {[%emt 0:00:16]} Be6 {[%emt 0:00:22]} 12. Rfc1 {[%emt 0:05:11]} Rc8 {[%emt 0:01:00]} 13. b3 {[%emt 0:02:50]} Nd7 {[%emt 0:07:07]} 14. Bxg7 {[%emt 0:01:15]} Kxg7 {[%emt 0:00:04]} 15. h3 {[%emt 0:12:29]} Qa5 {[%emt 0:04:21]} 16. Rab1 {[%emt 0:05:12]} f5 {[%emt 0:32:22]} 17. b4 {[%emt 0:07:40]} Qb6 {[%emt 0:09:58]} 18. Nd5 {[%emt 0:12:47]} Qd8 {[%emt 0:01:36]} 19. Qd4+ {[%emt 0:03:04]} Kg8 {[%emt 0:02:14]} 20. Nf4 {[%emt 0:03:15]} Bf7 {[%emt 0:01:05]} 21. exf5 {[%emt 0:01:43]} gxf5 {[%emt 0:01:28]} 22. Qd3 {[%emt 0:08:04]} Ne5 {[%emt 0:06:04]} 23. Qd4 {[%emt 0:05:24]} Nc6 {[%emt 0:02:05]} 24. Qd2 {[%emt 0:01:44]} e5 {[%emt 0:01:29]} 25. Nd5 {[%emt 0:01:00]} Nd4 {[%emt 0:01:32]} 26. Bd1 {[%emt 0:01:03]} Bg6 {[%emt 0:00:58]} 27. Qh6 {[%emt 0:01:43]} Qe8 {[%emt 0:02:29]} 28. Rb2 {[%emt 0:01:25]} Qf7 {[%emt 0:01:32]} 29. Qg5 {[%emt 0:03:00]} Kg7 {[%emt 0:01:34]} 30. Nb6 {[%emt 0:01:46]} Rce8 {[%emt 0:01:51]} 31. c5 {[%emt 0:00:38]} d5 {[%emt 0:00:16]} 32. Bb3 {[%emt 0:00:39]} Ne2+ {[%emt 0:11:11]} 1-0

[Event "Finnish Senior Championship 2022"]
[Site "Helsinki"]
[Date "2022.04.17"]
[Round "3.1"]
[White "Aakio, Seppo"]
[Black "Binham, Timothy F."]
[Result "1/2-1/2"]
[ECO "C47"]
[WhiteElo "2051"]
[BlackElo "2275"]
[Annotator "TA"]
[PlyCount "45"]
[EventDate "2022.04.15"]
[EventType "swiss"]
[EventCountry "FIN"]
[SourceTitle "playchess.com"]
[Source "ChessBase"]
[SourceQuality "1"]
[TimeControl "40/5400+30:1800+30"]

{[%evp 17,45,0,0,-3,12,12,13,4,19,21,31,0,0,0,0,-8,-7,-8,-8,-8,0,-20,-20,-23,-15,-13,-22,-57,-51,-61]} 1. e4 {[%emt 0:00:48]} e5 {[%emt 0:00:10]} 2. Nf3 {[%emt 0:00:38]} Nc6 {[%emt 0:00:08]} 3. d4 {[%emt 0:00:47]} exd4 {[%emt 0:00:21]} 4. Nxd4 {[%emt 0:00:50]} Nf6 {[%emt 0:00:29]} 5. Nc3 {[%emt 0:01:13]} Bb4 {[%emt 0:00:22]} 6. Nxc6 {[%emt 0:00:54]} bxc6 {[%emt 0:00:04]} 7. Bd3 {[%emt 0:01:01]} d5 {[%emt 0:05:36]} 8. exd5 {[%emt 0:00:44]} O-O {[%emt 0:01:10] seems to push 8...cxd5 aside.} 9. O-O {[%emt 0:00:25]} cxd5 {[%emt 0:00:10]} 10. h3 {[%emt 0:00:49] Against Bg4. C47: Scotch Four Knights and Four Knights with 4 g3.} c5 {[%emt 0:08:43]} 11. Qf3 {[%emt 0:08:03]} Be6 {[%emt 0:01:39]} 12. Rd1 {[%emt 0:02:58] The position is equal.} Qe7 {[%emt 0:03:39]} 13. Bg5 {[%emt 0:11:53] [#]} Rfd8 $146 {[%emt 0:06:32]} ({Predecessor:} 13... c4 14. Bf1 Bxc3 15. bxc3 h6 16. Bh4 g5 17. Bg3 Ne4 18. Rab1 f5 19. Be5 Bf7 {½-½ (58) Hovhannisyan,R (2643)-Ortega Ruiz,J (2331) Terme Catez 2022}) 14. Bf1 {[%emt 0:25:24]} h6 {[%emt 0:11:20]} 15. Bh4 {[%emt 0:04:06]} Rac8 {[%emt 0:09:38]} 16. Bxf6 {[%emt 0:11:50]} Qxf6 {[%emt 0:00:05]} 17. Qxf6 {[%emt 0:00:05]} gxf6 {[%emt 0:00:11]} 18. Ne2 {[%emt 0:00:10]} Ba5 {[%emt 0:02:16]} 19. Nf4 {[%emt 0:00:33]} Rb8 {[%emt 0:08:03]} 20. Rab1 {[%emt 0:02:26]} Bc7 {[%emt 0:00:40]} 21. Nxe6 {[%emt 0:00:06]} fxe6 {[%emt 0:00:02]} 22. c4 {[%emt 0:01:20]} d4 {[%emt 0:03:21]} 23. Bd3 {[%emt 0:24:57] Weighted Error Value: White=0.07 (flawless) /Black=0.03 (flawless)} 1/2-1/2

[Event "Finnish Senior Championship 2022"]
[Site "Helsinki"]
[Date "2022.04.17"]
[Round "3.2"]
[White "Hietala, Pekka"]
[Black "Lyly, Seppo"]
[Result "1-0"]
[ECO "A10"]
[WhiteElo "1925"]
[BlackElo "1908"]
[Annotator "TA"]
[PlyCount "57"]
[EventDate "2022.04.15"]
[EventType "swiss"]
[EventCountry "FIN"]
[SourceTitle "playchess.com"]
[Source "ChessBase"]
[SourceQuality "1"]
[TimeControl "40/5400+30:1800+30"]

{[%evp 9,57,0,7,-32,-33,-72,-61,-85,-61,-82,-85,-99,-72,-70,0,-74,34,23,17,16,15,16,22,14,100,62,89,89,95,89,92,0,156,58,171,124,269,288,369,379,383,263,277,270,513,498,809,781,825,758]} 1. c4 {[%emt 0:00:19]} f5 {[%emt 0:00:26]} 2. Nf3 {[%emt 0:02:34]} Nf6 {[%emt 0:02:07]} 3. b3 {[%emt 0:01:48]} g6 {[%emt 0:04:47]} 4. Bb2 {[%emt 0:06:00]} Bg7 {[%emt 0:00:11]} 5. d3 {[%emt 0:02:14]} O-O {[%emt 0:00:16]} 6. Nbd2 {[%emt 0:00:49] A10: English Opening: Unusual Replies for Black.} d6 {[%emt 0:00:54]} 7. e4 {[%emt 0:03:44] [#]} e5 $146 {[%emt 0:02:25]} ({Predecessor:} 7... Nc6 8. g3 e5 9. Bg2 h6 10. Nh4 Kh7 11. O-O Nd4 12. Bxd4 exd4 13. exf5 gxf5 {0-1 (34) Sadovsky,A (2421)-Hansen,S (2269) Chess.com INT 2020}) 8. g3 {[%emt 0:04:35] Black is slightly better.} a5 {[%emt 0:05:58]} 9. a3 {[%emt 0:00:52]} Nc6 {[%emt 0:09:12]} 10. Bg2 {[%emt 0:02:03]} Qe7 {[%emt 0:05:56]} 11. O-O {[%emt 0:00:28]} Bd7 {[%emt 0:02:26]} (11... f4 $15) 12. Re1 {[%emt 0:02:09]} (12. exf5 $11 gxf5 13. Re1) 12... h6 {[%emt 0:06:55]} (12... f4 $17) 13. d4 {[%emt 0:05:47][%cal Bd3d4,Bd4d5][%mdl 32]} fxe4 {[%emt 0:07:40]} 14. Nxe4 {[%emt 0:00:44]} Nxe4 {[%emt 0:01:16]} 15. Rxe4 {[%emt 0:00:26]} Bf5 {[%emt 0:02:06]} 16. Re3 {[%emt 0:03:16]} Bg4 {[%emt 0:04:56]} (16... e4 $11 17. Nd2 Nxd4) 17. d5 {[%emt 0:01:37]} Nd8 {[%emt 0:01:29]} (17... Nb8) 18. h3 {[%emt 0:06:51]} Bxf3 {[%emt 0:00:32]} 19. Bxf3 {[%emt 0:01:21]} Nf7 {[%emt 0:03:56]} 20. Bg4 {[%emt 0:05:51]} (20. Bg2) ({Better is} 20. h4 $16) 20... Kh7 $2 {[%emt 0:05:32] [#]} (20... Ng5 $11) 21. h4 {[%emt 0:01:00] White is more active.} (21. Qc2 $16) 21... Rae8 {[%emt 0:04:05]} (21... h5 $1 $14 22. Bh3 Nh6) 22. Qc2 {[%emt 0:04:41]} (22. Bf3 $18) 22... Nd8 {[%emt 0:08:03] A mistake that costs the game.} (22... e4 $16 {was necessary.}) 23. Rae1 $18 {[%emt 0:06:12]} Qf7 {[%emt 0:06:27]} 24. h5 {[%emt 0:12:16]} Qf6 {[%emt 0:01:00]} 25. Rf3 {[%emt 0:02:24]} Qg5 {[%emt 0:00:58]} 26. hxg6+ {[%emt 0:00:33]} Kh8 $2 {[%emt 0:01:26] [#]} (26... Qxg6 27. Bf5 Rxf5 28. Qxf5 (28. Rxf5 $2 {too greedy.} Rf8 $19) 28... Qxf5 29. Rxf5 Kg6) 27. Bf5 {[%emt 0:05:31] White is clearly winning.} Rf6 {[%emt 0:03:21]} (27... e4 $142) 28. Bc1 {[%emt 0:02:30] This bishop pair is nice.} Qh5 {[%emt 0:00:16]} 29. g4 {[%emt 0:00:52] Weighted Error Value: White=0.33/Black=0.67} 1-0

[Event "Finnish Senior Championship 2022"]
[Site "Helsinki"]
[Date "2022.04.18"]
[Round "4.1"]
[White "Binham, Timothy F."]
[Black "Terasalo, Kari"]
[Result "1-0"]
[ECO "B50"]
[WhiteElo "2275"]
[BlackElo "1775"]
[Annotator "TA"]
[PlyCount "75"]
[EventDate "2022.04.15"]
[EventType "swiss"]
[EventCountry "FIN"]
[SourceTitle "playchess.com"]
[Source "ChessBase"]
[SourceQuality "1"]
[TimeControl "40/5400+30:1800+30"]

{[%evp 9,74,-3,1,0,54,44,44,39,56,35,21,37,94,45,102,95,99,88,109,118,103,82,143,133,155,153,154,168,196,204,200,164,197,183,219,166,310,338,415,398,622,648,647,643,626,622,600,577,552,520,539,464,1337,1300,2312,2139,29986,29987,29988,29988,29990,29991,29993,29994,29994,29992,29999]} 1. e4 {[%emt 0:00:09]} c5 {[%emt 0:00:19]} 2. Nf3 {[%emt 0:00:06]} d6 {[%emt 0:00:27]} 3. c3 {[%emt 0:00:13]} Nf6 {[%emt 0:01:11]} 4. Be2 {[%emt 0:00:07]} g6 {[%emt 0:00:42]} 5. O-O {[%emt 0:00:34]} Bg7 {[%emt 0:00:32]} 6. Re1 {[%emt 0:00:06] B50: Sicilian: 2...d6, Miscellaneous.} Nbd7 {[%emt 0:03:29]} (6... O-O $11) 7. Bf1 $14 {[%emt 0:00:47]} O-O {[%emt 0:00:20]} 8. d4 {[%emt 0:00:20][%cal Bd2d4,Bd4e5][%mdl 32] Prevents Ne5. White is slightly better.} b6 {[%emt 0:02:44]} 9. e5 {[%emt 0:11:06] [#]} dxe5 $146 {[%emt 0:02:04]} ({Predecessor:} 9... Ne8 10. Bg5 d5 11. c4 h6 12. Bh4 Bb7 13. cxd5 g5 14. Bg3 Bxd5 15. Nc3 Bxf3 16. Qxf3 cxd4 {1-0 (45) Looshnikov,N (2409)-Timagin,P (2283) Orsk 2001}) 10. dxe5 {[%emt 0:00:04]} Ne8 {[%emt 0:01:26]} ({Black should try} 10... Ng4 $14) 11. Bf4 {[%emt 0:13:09] 0x0.00138d2c057ddp-1022s more active pieces.} (11. e6 $16 fxe6 12. Ng5) 11... e6 {[%emt 0:00:35]} (11... Nc7 $1 $14) 12. Nbd2 {[%emt 0:02:35]} Bb7 {[%emt 0:02:40]} 13. a4 {[%emt 0:00:57]} h6 {[%emt 0:00:48]} 14. Nc4 {[%emt 0:04:23]} Bd5 {[%emt 0:12:52]} 15. Qd3 {[%emt 0:06:21]} Qc7 {[%emt 0:07:42]} (15... a6 $142) 16. Qe3 $16 {[%emt 0:00:46]} Kh7 {[%emt 0:05:48]} 17. h4 {[%emt 0:02:29][%cal Bh2h4,Bh4h5][%mdl 32]} Rh8 {[%emt 0:04:39]} 18. Bd3 {[%emt 0:07:16]} Qb7 {[%emt 0:04:25]} 19. h5 {[%emt 0:01:39] Ncd2 is the strong threat.} Nf8 {[%emt 0:03:21]} 20. Nfd2 {[%emt 0:11:09]} Qe7 {[%emt 0:10:07]} 21. Qg3 {[%emt 0:00:56]} Rd8 {[%emt 0:05:15]} 22. Nf3 {[%emt 0:07:57]} Rg8 {[%emt 0:05:42]} (22... Bxc4 $142 23. Bxc4 Nc7) 23. hxg6+ $18 {[%emt 0:03:01]} fxg6 {[%emt 0:01:44]} 24. Bg5 {[%emt 0:01:48]} hxg5 {[%emt 0:05:24]} (24... Qc7 $142 25. Bxd8 Qxd8) 25. Nxg5+ {[%emt 0:00:56]} Kh8 {[%emt 0:00:28]} 26. Qh2+ {[%emt 0:00:09]} Bh6 {[%emt 0:01:02]} 27. Qxh6+ {[%emt 0:00:02]} Nh7 {[%emt 0:00:42]} 28. f4 {[%emt 0:01:26]} Qg7 {[%emt 0:00:44]} 29. Qh3 {[%emt 0:00:32]} Rf8 {[%emt 0:01:51]} 30. Rf1 {[%emt 0:01:00]} ({Not} 30. Nxe6 Bxe6 31. Qxe6 Rxd3 $15) 30... Qe7 {[%emt 0:03:25] [#]} (30... Nc7 $142 31. Nd6 Kg8) 31. Bxg6 $1 {[%emt 0:02:45][%cal Rg5h7]} Bxc4 {[%emt 0:07:16]} (31... Rd7 32. Nxh7) 32. Nxh7 {[%emt 0:00:38] Intending Nf6+ and mate.} Kg7 {[%emt 0:00:37] Prevents Nf6.} 33. Nxf8 {[%emt 0:00:21] White mates.} Kg8 {[%emt 0:01:01] [#]} 34. Rf3 $1 {[%emt 0:03:10]} Qg7 {[%emt 0:01:24]} (34... Nf6 35. exf6) 35. Nxe6 {[%emt 0:01:06]} Bxe6 {[%emt 0:05:14]} 36. Qxe6+ {[%emt 0:00:05]} Kf8 {[%emt 0:00:00]} 37. Rd3 {[%emt 0:00:48]} Rxd3 {[%emt 0:00:00]} 38. Qxe8# {[%emt 0:00:02] Weighted Error Value: White=0.12 (very precise) /Black=0.50} 1-0